[Event "Juniorallsvenskan 2019, Division 1 and 2"]
[Site "Molnlycke kulturhus, Biblioteksgatan 2, Molnlycke, Sweden"]
[Date "2019.11.24"]
[Round "4.21"]
[White "Wernberg, Hugo"]
[Black "Johansson, Stina"]
[Result "1-0"]
[TimeControl "90 minutes + 30 seconds per move from move one"]
[WhiteFideId "1737511"]
[BlackFideId "1739026"]
[WhiteElo "2020"]
[BlackElo "1425"]

1. e4 {[%clk 01:30:57]} {[%emt 00:00:02]} e5 {[%clk 01:30:53]} {[%emt
00:00:06]} 2. Nf3 {[%clk 01:31:22]} {[%emt 00:00:05]} Nc6 {[%clk 01:31:16]}
{[%emt 00:00:07]} 3. Bc4 {[%clk 01:31:48]} {[%emt 00:00:05]} Bc5 {[%clk
01:30:54]} {[%emt 00:00:52]} 4. c3 {[%clk 01:32:11]} {[%emt 00:00:07]} Nf6
{[%clk 01:30:39]} {[%emt 00:00:44]} 5. d4 {[%clk 01:32:26]} {[%emt 00:00:15]}
exd4 {[%clk 01:29:59]} {[%emt 00:01:10]} 6. cxd4 {[%clk 01:32:53]} {[%emt
00:00:03]} Bb4+ {[%clk 01:29:37]} {[%emt 00:00:52]} 7. Nc3 {[%clk 01:33:14]}
{[%emt 00:00:09]} Nxe4 {[%clk 01:28:21]} {[%emt 00:01:45]} 8. O-O {[%clk
01:33:27]} {[%emt 00:00:17]} Bxc3 {[%clk 01:26:55]} {[%emt 00:01:56]} 9. d5
{[%clk 01:33:33]} {[%emt 00:00:24]} Na5 {[%clk 01:24:38]} {[%emt 00:02:48]} 10.
Bd3 {[%clk 01:22:14]} {[%emt 00:11:48]} O-O {[%clk 01:20:19]} {[%emt 00:04:50]}
11. bxc3 {[%clk 01:21:20]} {[%emt 00:01:24]} Nf6 {[%clk 01:13:04]} {[%emt
00:07:45]} 12. c4 {[%clk 01:14:49]} {[%emt 00:07:00]} b6 {[%clk 01:11:34]}
{[%emt 00:02:00]} 13. Bb2 {[%clk 01:14:24]} {[%emt 00:00:54]} Ba6 {[%clk
01:09:22]} {[%emt 00:02:43]} 14. Qc2 {[%clk 01:11:26]} {[%emt 00:03:28]} h6
{[%clk 01:03:07]} {[%emt 00:06:44]} 15. Kh1 {[%clk 01:08:56]} {[%emt 00:02:59]}
d6 {[%clk 01:01:58]} {[%emt 00:01:39]} 16. Qc3 {[%clk 01:05:07]} {[%emt
00:04:20]} c6 {[%clk 00:59:47]} {[%emt 00:02:41]} 17. g4 {[%clk 00:59:31]}
{[%emt 00:06:05]} cxd5 {[%clk 00:57:32]} {[%emt 00:02:46]} 18. cxd5 {[%clk
00:58:04]} {[%emt 00:01:56]} Bxd3 {[%clk 00:56:58]} {[%emt 00:01:05]} 19. Qxd3
{[%clk 00:58:25]} {[%emt 00:00:09]} Nxg4 {[%clk 00:55:22]} {[%emt 00:02:06]} 20.
Qf5 {[%clk 00:50:03]} {[%emt 00:08:51]} Qc8 {[%clk 00:51:43]} {[%emt 00:04:10]}
21. Qf4 {[%clk 00:47:42]} {[%emt 00:02:50]} Nc4 {[%clk 00:49:27]} {[%emt
00:02:47]} 22. Rac1 {[%clk 00:46:00]} {[%emt 00:02:12]} b5 {[%clk 00:48:00]}
{[%emt 00:01:56]} 23. Bd4 {[%clk 00:44:25]} {[%emt 00:02:05]} Qd7 {[%clk
00:44:16]} {[%emt 00:04:15]} 24. Rg1 {[%clk 00:41:12]} {[%emt 00:03:42]} Nce5
{[%clk 00:38:14]} {[%emt 00:06:33]} 25. Nxe5 {[%clk 00:27:56]} {[%emt
00:13:46]} dxe5 {[%clk 00:37:45]} {[%emt 00:00:59]} 26. Qxg4 {[%clk 00:28:09]}
{[%emt 00:00:17]} Qxg4 {[%clk 00:36:34]} {[%emt 00:01:40]} 27. Rxg4 {[%clk
00:28:31]} {[%emt 00:00:09]} exd4 {[%clk 00:36:50]} {[%emt 00:00:14]} 28. Rxd4
{[%clk 00:28:18]} {[%emt 00:00:42]} Rad8 {[%clk 00:36:11]} {[%emt 00:01:10]} 29.
Rc5 {[%clk 00:26:23]} {[%emt 00:02:25]} Rd6 {[%clk 00:32:27]} {[%emt 00:04:14]}
30. Rxb5 {[%clk 00:26:21]} {[%emt 00:00:32]} Rfd8 {[%clk 00:32:41]} {[%emt
00:00:15]} 31. Kg2 {[%clk 00:26:21]} {[%emt 00:00:30]} f5 {[%clk 00:31:44]}
{[%emt 00:01:27]} 32. Kf3 {[%clk 00:25:53]} {[%emt 00:00:58]} a6 {[%clk
00:31:38]} {[%emt 00:00:37]} 33. Rc5 {[%clk 00:26:05]} {[%emt 00:00:17]} Kf7
{[%clk 00:31:57]} {[%emt 00:00:11]} 34. Ke3 {[%clk 00:25:54]} {[%emt 00:00:41]}
Kf6 {[%clk 00:31:48]} {[%emt 00:00:39]} 35. h4 {[%clk 00:23:46]} {[%emt
00:02:39]} g5 {[%clk 00:30:39]} {[%emt 00:01:39]} 36. hxg5+ {[%clk 00:23:53]}
{[%emt 00:00:23]} Kxg5 {[%clk 00:30:28]} {[%emt 00:00:40]} 37. Kf3 {[%clk
00:22:12]} {[%emt 00:02:12]} h5 {[%clk 00:30:16]} {[%emt 00:00:42]} 38. Kg3
{[%clk 00:21:43]} {[%emt 00:00:58]} f4+ {[%clk 00:28:26]} {[%emt 00:02:20]} 39.
Kg2 {[%clk 00:19:04]} {[%emt 00:03:09]} Kg4 {[%clk 00:25:20]} {[%emt 00:03:36]}
40. Ra5 {[%clk 00:18:21]} {[%emt 00:01:13]} R8d7 {[%clk 00:24:54]} {[%emt
00:00:56]} 41. Rd1 {[%clk 00:16:46]} {[%emt 00:02:04]} Rd8 {[%clk 00:23:53]}
{[%emt 00:01:31]} 42. Rd4 {[%clk 00:15:14]} {[%emt 00:02:03]} R8d7 {[%clk
00:22:33]} {[%emt 00:01:50]} 43. Raa4 {[%clk 00:14:05]} {[%emt 00:01:38]} Rxd5
{[%clk 00:22:14]} {[%emt 00:00:50]} 44. Rxf4+ {[%clk 00:14:26]} {[%emt
00:00:09]} Kg5 {[%clk 00:22:27]} {[%emt 00:00:17]} 45. Rf8 {[%clk 00:14:22]}
{[%emt 00:00:33]} Ra7 {[%clk 00:22:13]} {[%emt 00:00:44]} 46. Ra3 {[%clk
00:13:05]} {[%emt 00:01:48]} Kg6 {[%clk 00:21:14]} {[%emt 00:01:28]} 47. Rg3+
{[%clk 00:12:30]} {[%emt 00:01:05]} Kh7 {[%clk 00:21:25]} {[%emt 00:00:20]} 48.
Rgf3 {[%clk 00:09:32]} {[%emt 00:03:27]} Rg7+ {[%clk 00:21:01]} {[%emt
00:00:54]} 49. Kh2 {[%clk 00:09:43]} {[%emt 00:00:19]} Ra5 {[%clk 00:20:58]}
{[%emt 00:00:34]} 50. a3 {[%clk 00:09:47]} {[%emt 00:00:26]} Rag5 {[%clk
00:20:21]} {[%emt 00:01:07]} 51. R3f5 {[%clk 00:09:03]} {[%emt 00:01:13]} Rg2+
{[%clk 00:17:20]} {[%emt 00:03:31]} 52. Kh3 {[%clk 00:08:48]} {[%emt 00:00:45]}
R2g5 {[%clk 00:15:13]} {[%emt 00:02:37]} 53. a4 {[%clk 00:05:45]} {[%emt
00:03:34]} R7g6 {[%clk 00:13:36]} {[%emt 00:02:07]} 54. R5f7+ {[%clk 00:05:35]}
{[%emt 00:00:39]} Rg7 {[%clk 00:13:36]} {[%emt 00:00:30]} 55. Rf5 {[%clk
00:05:27]} {[%emt 00:00:37]} R7g6 {[%clk 00:13:29]} {[%emt 00:00:38]} 56. R8f7+
{[%clk 00:05:42]} {[%emt 00:00:16]} Kh6 {[%clk 00:13:30]} {[%emt 00:00:28]} 57.
Rxg5 {[%clk 00:05:18]} {[%emt 00:00:55]} Kxg5 {[%clk 00:12:17]} {[%emt
00:01:42]} 58. f4+ {[%clk 00:04:43]} {[%emt 00:01:05]} Kh6 {[%clk 00:12:28]}
{[%emt 00:00:19]} 59. Rf5 {[%clk 00:04:50]} {[%emt 00:00:23]} Rg4 {[%clk
00:11:07]} {[%emt 00:01:51]} 60. Rf8 {[%clk 00:05:03]} {[%emt 00:00:17]} Kg7
{[%clk 00:10:42]} {[%emt 00:00:56]} 61. Rf5 {[%clk 00:05:13]} {[%emt 00:00:20]}
Kg6 {[%clk 00:10:53]} {[%emt 00:00:18]} 62. Ra5 {[%clk 00:05:31]} {[%emt
00:00:12]} Rxf4 {[%clk 00:11:04]} {[%emt 00:00:20]} 63. Rxa6+ {[%clk 00:05:48]}
{[%emt 00:00:12]} Kg5 {[%clk 00:11:26]} {[%emt 00:00:09]} 64. Ra8 {[%clk
00:06:00]} {[%emt 00:00:18]} Rh4+ {[%clk 00:11:30]} {[%emt 00:00:25]} 65. Kg3
{[%clk 00:06:19]} {[%emt 00:00:11]} Rg4+ {[%clk 00:11:53]} {[%emt 00:00:08]} 66.
Kf3 {[%clk 00:06:34]} {[%emt 00:00:13]} Rf4+ {[%clk 00:11:59]} {[%emt
00:00:25]} 67. Ke3 {[%clk 00:05:21]} {[%emt 00:01:43]} Rg4 {[%clk 00:11:13]}
{[%emt 00:01:16]} 68. Rg8+ {[%clk 00:04:59]} {[%emt 00:00:53]} Kh4 {[%clk
00:11:36]} {[%emt 00:00:07]} 69. Rxg4+ {[%clk 00:05:10]} {[%emt 00:00:19]} hxg4
{[%clk 00:11:59]} {[%emt 00:00:07]} 70. Kf2 {[%clk 00:05:31]} {[%emt 00:00:08]}
g3+ {[%clk 00:10:15]} {[%emt 00:02:14]} 71. Kg1 {[%clk 00:05:54]} {[%emt
00:00:06]} Kg4 {[%clk 00:10:20]} {[%emt 00:00:25]} 72. a5 {[%clk 00:06:06]}
{[%emt 00:00:18]} Kf4 {[%clk 00:10:39]} {[%emt 00:00:12]} 73. a6 {[%clk
00:06:30]} {[%emt 00:00:06]} Kf3 {[%clk 00:10:45]} {[%emt 00:00:23]} 74. a7
{[%clk 00:06:52]} {[%emt 00:00:09]} Kf4 {[%clk 00:11:03]} {[%emt 00:00:12]} 75.
a8=Q {[%clk 00:07:13]} {[%emt 00:00:08]} Kg4 {[%clk 00:11:28]} {[%emt
00:00:05]} 76. Kg2 {[%clk 00:07:27]} {[%emt 00:00:16]} Kf4 {[%clk 00:11:48]}
{[%emt 00:00:10]} 77. Qe8 {[%clk 00:07:49]} {[%emt 00:00:08]} Kf5 {[%clk
00:12:10]} {[%emt 00:00:08]} 78. Kxg3 {[%clk 00:08:12]} {[%emt 00:00:07]} Kf6
{[%clk 00:12:35]} {[%emt 00:00:05]} 79. Kf4 {[%clk 00:08:26]} {[%emt 00:00:15]}
Kg7 {[%clk 00:12:58]} {[%emt 00:00:08]} 80. Qc6 {[%clk 00:08:51]} {[%emt
00:00:06]} Kf7 {[%clk 00:13:20]} {[%emt 00:00:07]} 81. Kf5 {[%clk 00:09:13]}
{[%emt 00:00:08]} Ke7 {[%clk 00:13:44]} {[%emt 00:00:07]} 82. Qc7+ {[%clk
00:09:36]} {[%emt 00:00:07]} Ke8 {[%clk 00:14:06]} {[%emt 00:00:08]} 83. Kf6
{[%clk 00:09:58]} {[%emt 00:00:07]} Kf8 {[%clk 00:14:30]} {[%emt 00:00:06]} 84.
Qb8# {[%clk 00:10:21]} {[%emt 00:00:07]} 1-0

[Event "Juniorallsvenskan 2019, Division 1 and 2"]
[Site "Molnlycke kulturhus, Biblioteksgatan 2, Molnlycke, Sweden"]
[Date "2019.11.24"]
[Round "4.22"]
[White "Nystedt, Ludvig"]
[Black "Ostlund, Joar"]
[Result "0-1"]
[TimeControl "90 minutes + 30 seconds per move from move one"]
[WhiteFideId "1759540"]
[BlackFideId "1735020"]
[WhiteElo "1322"]
[BlackElo "1955"]

1. d4 {[%clk 01:30:59]} {[%emt 00:00:01]} Nf6 {[%clk 01:30:54]} {[%emt
00:00:06]} 2. c4 {[%clk 01:31:19]} {[%emt 00:00:09]} e6 {[%clk 01:31:19]}
{[%emt 00:00:06]} 3. Nc3 {[%clk 01:31:44]} {[%emt 00:00:05]} Bb4 {[%clk
01:31:33]} {[%emt 00:00:16]} 4. Bd2 {[%clk 01:29:30]} {[%emt 00:02:44]} O-O
{[%clk 01:30:49]} {[%emt 00:01:14]} 5. Nf3 {[%clk 01:29:22]} {[%emt 00:00:38]}
d5 {[%clk 01:30:21]} {[%emt 00:00:57]} 6. e3 {[%clk 01:28:58]} {[%emt
00:00:55]} b6 {[%clk 01:28:32]} {[%emt 00:02:20]} 7. Bd3 {[%clk 01:27:53]}
{[%emt 00:01:34]} Bb7 {[%clk 01:27:39]} {[%emt 00:01:22]} 8. O-O {[%clk
01:27:55]} {[%emt 00:00:28]} Nbd7 {[%clk 01:26:37]} {[%emt 00:01:32]} 9. cxd5
{[%clk 01:26:51]} {[%emt 00:01:35]} exd5 {[%clk 01:25:01]} {[%emt 00:02:06]} 10.
Re1 {[%clk 01:19:41]} {[%emt 00:07:40]} Re8 {[%clk 01:22:47]} {[%emt 00:02:44]}
11. a3 {[%clk 01:16:53]} {[%emt 00:03:18]} Bf8 {[%clk 01:16:31]} {[%emt
00:06:46]} 12. Bc1 {[%clk 01:07:20]} {[%emt 00:10:03]} Ne4 {[%clk 01:15:18]}
{[%emt 00:01:43]} 13. Nd2 {[%clk 01:04:48]} {[%emt 00:03:02]} Ndf6 {[%clk
01:09:23]} {[%emt 00:06:25]} 14. Ndxe4 {[%clk 01:04:40]} {[%emt 00:00:38]} Nxe4
{[%clk 00:57:04]} {[%emt 00:12:49]} 15. Nxe4 {[%clk 01:04:20]} {[%emt
00:00:50]} dxe4 {[%clk 00:57:26]} {[%emt 00:00:07]} 16. Bc4 {[%clk 01:02:35]}
{[%emt 00:02:15]} Qh4 {[%clk 00:56:12]} {[%emt 00:01:45]} 17. Qb3 {[%clk
01:01:31]} {[%emt 00:01:33]} Qh5 {[%clk 00:55:30]} {[%emt 00:01:11]} 18. Bd2
{[%clk 00:59:52]} {[%emt 00:02:10]} Rad8 {[%clk 00:48:33]} {[%emt 00:07:28]} 19.
Rac1 {[%clk 00:59:34]} {[%emt 00:00:48]} Bd6 {[%clk 00:42:42]} {[%emt
00:06:20]} 20. h3 {[%clk 00:58:28]} {[%emt 00:01:37]} Bc8 {[%clk 00:41:45]}
{[%emt 00:01:27]} 21. Bb4 {[%clk 00:39:36]} {[%emt 00:19:22]} Re7 {[%clk
00:37:29]} {[%emt 00:04:45]} 22. Bxd6 {[%clk 00:37:48]} {[%emt 00:02:19]} Rxd6
{[%clk 00:37:14]} {[%emt 00:00:45]} 23. Qb4 {[%clk 00:37:30]} {[%emt 00:00:48]}
Bxh3 {[%clk 00:33:38]} {[%emt 00:04:06]} 24. gxh3 {[%clk 00:37:40]} {[%emt
00:00:19]} Qxh3 {[%clk 00:33:35]} {[%emt 00:00:33]} 0-1

[Event "Juniorallsvenskan 2019, Division 1 and 2"]
[Site "Molnlycke kulturhus, Biblioteksgatan 2, Molnlycke, Sweden"]
[Date "2019.11.24"]
[Round "5.1"]
[White "Troberg Eskola, Love"]
[Black "Sorensen, Hampus"]
[Result "0-1"]
[TimeControl "90 minutes + 30 seconds per move from move one"]
[BlackTitle "FM"]
[WhiteFideId "1724185"]
[BlackFideId "8703884"]
[WhiteElo "2096"]
[BlackElo "2365"]

1. Nf3 {[%clk 01:30:59]} d5 {[%clk 01:30:37]} {[%emt 00:00:23]} 2. c4 {[%clk
01:31:25]} {[%emt 00:00:04]} c6 {[%clk 01:29:47]} {[%emt 00:01:19]} 3. g3
{[%clk 01:31:43]} {[%emt 00:00:12]} Nf6 {[%clk 01:29:37]} {[%emt 00:00:40]} 4.
Bg2 {[%clk 01:31:31]} {[%emt 00:00:42]} Bf5 {[%clk 01:28:39]} {[%emt 00:01:29]}
5. Qb3 {[%clk 01:28:47]} {[%emt 00:03:14]} Qb6 {[%clk 01:25:26]} {[%emt
00:03:43]} 6. Qxb6 {[%clk 01:26:24]} {[%emt 00:02:54]} axb6 {[%clk 01:25:54]}
{[%emt 00:00:02]} 7. cxd5 {[%clk 01:26:40]} {[%emt 00:00:14]} Nxd5 {[%clk
01:22:48]} {[%emt 00:03:35]} 8. Nc3 {[%clk 01:16:32]} {[%emt 00:10:37]} Nxc3
{[%clk 01:22:14]} {[%emt 00:01:04]} 9. dxc3 {[%clk 01:16:23]} {[%emt 00:00:39]}
Be4 {[%clk 01:15:37]} {[%emt 00:07:07]} 10. Nh4 {[%clk 01:14:02]} {[%emt
00:02:50]} Bxg2 {[%clk 01:14:52]} {[%emt 00:01:16]} 11. Nxg2 {[%clk 01:14:25]}
{[%emt 00:00:07]} e6 {[%clk 01:14:13]} {[%emt 00:01:08]} 12. a3 {[%clk
01:03:14]} {[%emt 00:11:42]} Be7 {[%clk 01:13:13]} {[%emt 00:01:30]} 13. Be3
{[%clk 01:03:05]} {[%emt 00:00:39]} Nd7 {[%clk 01:11:34]} {[%emt 00:02:10]} 14.
Rd1 {[%clk 01:02:31]} {[%emt 00:01:03]} Rd8 {[%clk 01:07:44]} {[%emt 00:04:20]}
15. Bf4 {[%clk 00:56:16]} {[%emt 00:06:46]} b5 {[%clk 01:04:55]} {[%emt
00:03:20]} 16. Rd3 {[%clk 00:54:22]} {[%emt 00:02:23]} Rc8 {[%clk 00:55:25]}
{[%emt 00:10:00]} 17. O-O {[%clk 00:48:46]} {[%emt 00:06:05]} Nc5 {[%clk
00:55:20]} {[%emt 00:00:36]} 18. Rdd1 {[%clk 00:48:04]} {[%emt 00:01:12]} Na4
{[%clk 00:53:59]} {[%emt 00:01:51]} 19. Bc1 {[%clk 00:47:06]} {[%emt 00:01:27]}
Rd8 {[%clk 00:52:46]} {[%emt 00:01:45]} 20. Rxd8+ {[%clk 00:47:06]} {[%emt
00:00:30]} Kxd8 {[%clk 00:53:06]} {[%emt 00:00:10]} 21. Rd1+ {[%clk 00:44:37]}
{[%emt 00:02:58]} Kc7 {[%clk 00:52:59]} {[%emt 00:00:37]} 22. Kf1 {[%clk
00:43:33]} {[%emt 00:01:34]} c5 {[%clk 00:51:07]} {[%emt 00:02:22]} 23. Ne1
{[%clk 00:41:27]} {[%emt 00:02:35]} Bf6 {[%clk 00:44:32]} {[%emt 00:07:05]} 24.
Nc2 {[%clk 00:38:07]} {[%emt 00:03:50]} h5 {[%clk 00:41:31]} {[%emt 00:03:31]}
25. h3 {[%clk 00:35:39]} {[%emt 00:02:58]} Rd8 {[%clk 00:37:13]} {[%emt
00:04:48]} 26. Rxd8 {[%clk 00:35:42]} {[%emt 00:00:28]} Bxd8 {[%clk 00:37:33]}
{[%emt 00:00:10]} 27. f3 {[%clk 00:28:38]} {[%emt 00:07:33]} Kc6 {[%clk
00:37:09]} {[%emt 00:00:56]} 28. Kf2 {[%clk 00:28:05]} {[%emt 00:01:02]} Be7
{[%clk 00:36:15]} {[%emt 00:01:24]} 29. g4 {[%clk 00:19:36]} {[%emt 00:08:59]}
hxg4 {[%clk 00:36:37]} {[%emt 00:00:08]} 30. hxg4 {[%clk 00:19:21]} {[%emt
00:00:45]} Kd5 {[%clk 00:31:46]} {[%emt 00:05:21]} 31. Ne3+ {[%clk 00:19:05]}
{[%emt 00:00:45]} Kc6 {[%clk 00:30:34]} {[%emt 00:01:43]} 32. Nc2 {[%clk
00:19:17]} {[%emt 00:00:18]} b4 {[%clk 00:29:56]} {[%emt 00:01:08]} 33. cxb4
{[%clk 00:15:14]} {[%emt 00:04:33]} cxb4 {[%clk 00:29:43]} {[%emt 00:00:42]} 34.
axb4 {[%clk 00:13:31]} {[%emt 00:02:14]} Kb5 {[%clk 00:29:07]} {[%emt
00:01:06]} 35. b3 {[%clk 00:11:49]} {[%emt 00:02:12]} Nc3 {[%clk 00:28:13]}
{[%emt 00:01:25]} 36. Bb2 {[%clk 00:10:49]} {[%emt 00:01:29]} Nd1+ {[%clk
00:28:00]} {[%emt 00:00:42]} 37. Ke1 {[%clk 00:10:57]} {[%emt 00:00:22]} Nxb2
{[%clk 00:28:26]} {[%emt 00:00:06]} 38. Kd2 {[%clk 00:11:17]} {[%emt 00:00:09]}
Bg5+ {[%clk 00:24:47]} {[%emt 00:04:09]} 39. e3 {[%clk 00:09:50]} {[%emt
00:01:56]} Bf6 {[%clk 00:24:20]} {[%emt 00:00:58]} 40. Ke2 {[%clk 00:09:18]}
{[%emt 00:01:01]} Bc3 {[%clk 00:24:33]} {[%emt 00:00:16]} 41. f4 {[%clk
00:09:20]} {[%emt 00:00:28]} f5 {[%clk 00:23:34]} {[%emt 00:01:30]} 42. gxf5
{[%clk 00:09:18]} {[%emt 00:00:33]} exf5 {[%clk 00:24:00]} {[%emt 00:00:04]} 43.
e4 {[%clk 00:09:40]} {[%emt 00:00:07]} fxe4 {[%clk 00:24:22]} {[%emt 00:00:08]}
44. Ke3 {[%clk 00:10:00]} {[%emt 00:00:09]} Nd3 {[%clk 00:23:18]} {[%emt
00:01:34]} 45. Kxe4 {[%clk 00:10:19]} {[%emt 00:00:12]} Nxb4 {[%clk 00:23:42]}
{[%emt 00:00:05]} 46. Ne3 {[%clk 00:10:15]} {[%emt 00:00:34]} Kc5 {[%clk
00:23:36]} {[%emt 00:00:37]} 47. Nc4 {[%clk 00:09:11]} {[%emt 00:01:34]} Nc6
{[%clk 00:23:39]} {[%emt 00:00:27]} 48. Kd3 {[%clk 00:08:56]} {[%emt 00:00:44]}
Bf6 {[%clk 00:23:41]} {[%emt 00:00:29]} 49. Ke4 {[%clk 00:08:10]} {[%emt
00:01:16]} Nd4 {[%clk 00:23:26]} {[%emt 00:00:45]} 50. Na5 {[%clk 00:08:05]}
{[%emt 00:00:35]} b6 {[%clk 00:23:33]} {[%emt 00:00:22]} 51. Nb7+ {[%clk
00:07:18]} {[%emt 00:01:18]} Kc6 {[%clk 00:23:52]} {[%emt 00:00:11]} 52. Nd8+
{[%clk 00:07:24]} {[%emt 00:00:24]} Bxd8 {[%clk 00:24:11]} {[%emt 00:00:10]} 53.
Kxd4 {[%clk 00:07:36]} {[%emt 00:00:18]} Kb5 {[%clk 00:24:37]} {[%emt
00:00:04]} 0-1